bitfinex/quotes_BTCUSD_20250730
["timestamp","ask_amount","ask_price","bid_price","bid_amount"]
[1753910031460,5.39919541,117390.0,117380.0,0.002]
[1753910031678,5.3906768,117390.0,117380.0,0.002]
[1753910032881,5.39067731,117390.0,117380.0,0.002]
[1753910033323,5.38215877,117390.0,117380.0,0.002]
[1753910033557,5.38215877,117390.0,117380.0,0.044]
[1753910034488,5.37057394,117390.0,117380.0,0.044]
[1753910034672,5.37909248,117390.0,117380.0,0.044]
[1753910037890,5.72761109,117390.0,117380.0,0.044]
[1753910038795,5.72450109,117390.0,117380.0,0.044]
[1753910039010,5.70746394,117390.0,117380.0,0.044]
[1753910040374,5.93139017,117390.0,117380.0,0.002]
[1753910040591,5.95923748,117390.0,117380.0,0.002]
[1753910040787,6.18485548,117390.0,117380.0,0.002]
[1753910041225,6.18485548,117390.0,117380.0,0.001]
[1753910041393,1.18485548,117390.0,117380.0,0.001]
[1753910041582,1.18585548,117390.0,117380.0,0.001]
[1753910041809,6.18585548,117390.0,117380.0,0.001]
[1753910042374,0.01703918,117370.0,117360.0,0.04637]
[1753910042580,5.14631918,117370.0,117360.0,0.04846]
[1753910042988,5.15965563,117370.0,117360.0,0.04846]
[1753910043806,5.1681754,117370.0,117360.0,0.04850863]
[1753910044049,5.50473483,117370.0,117360.0,0.04431863]
[1753910044172,5.40298845,117370.0,117360.0,0.04431863]
[1753910044371,5.4029883,117370.0,117360.0,0.04431863]
[1753910044574,5.48891272,117370.0,117360.0,0.04431863]
[1753910044779,5.54707272,117370.0,117360.0,0.00104863]
[1753910045053,5.87855302,117370.0,117360.0,0.00104863]
[1753910045436,5.86151341,117370.0,117360.0,0.00104863]
[1753910046093,5.86151341,117370.0,117360.0,0.00204863]
[1753910046273,5.86151341,117370.0,117360.0,0.00104863]
[1753910046274,0.94599071,117370.0,117360.0,0.00104863]
[1753910046422,5.94599071,117370.0,117360.0,0.00104863]
[1753910046627,5.94799071,117370.0,117360.0,4.863e-05]
[1753910047026,5.94899071,117370.0,117360.0,4.863e-05]
[1753910047228,5.86451341,117370.0,117360.0,4.863e-05]
[1753910047432,5.87249684,117370.0,117360.0,4.863e-05]
[1753910048326,0.87249684,117370.0,117360.0,0.04331863]
[1753910048480,5.87249684,117370.0,117360.0,0.04331863]
[1753910048878,5.86451341,117370.0,117360.0,0.04331863]
[1753910049106,5.87249052,117370.0,117360.0,0.04331863]
[1753910049478,5.86451341,117370.0,117360.0,0.04331863]
[1753910050083,5.87249153,117370.0,117360.0,0.04331863]
[1753910050287,5.95696883,117370.0,117360.0,4.863e-05]
[1753910053071,5.97030681,117370.0,117360.0,4.863e-05]
[1753910053886,5.99815412,117370.0,117360.0,4.863e-05]
[1753910054119,6.19815412,117370.0,117360.0,4.863e-05]
[1753910054319,6.22214284,117370.0,117360.0,4.863e-05]
[1753910054467,5.00852158,117340.0,117330.0,0.00341863]
[1753910054679,5.20649649,117340.0,117330.0,0.0059949]
[1753910054846,5.23408211,117340.0,117330.0,0.0059949]
[1753910055053,5.5649605,117340.0,117330.0,0.0059949]
[1753910055286,0.95599863,117340.0,117330.0,0.00048627]
[1753910055456,0.98539654,117340.0,117330.0,0.00048627]
[1753910055666,5.98539654,117340.0,117330.0,0.00048627]
[1753910056284,5.98639654,117340.0,117330.0,0.00048627]
[1753910056714,5.73999633,117340.0,117330.0,0.00048627]
[1753910056936,5.69201857,117340.0,117330.0,0.00048627]
[1753910057148,5.65409857,117340.0,117330.0,0.04375627]
[1753910057352,5.64557633,117340.0,117330.0,0.04375627]
[1753910058168,5.65409857,117340.0,117330.0,0.04375627]
[1753910058379,5.73857587,117340.0,117330.0,0.04375627]
[1753910059190,5.90902073,117340.0,117330.0,0.04375627]
[1753910059393,6.00144073,117340.0,117330.0,0.00048627]
[1753910060266,1.00144073,117340.0,117330.0,0.00048627]
[1753910060462,6.00144073,117340.0,117330.0,0.00048627]
[1753910060700,5.99291878,117340.0,117330.0,0.00048627]
[1753910061412,5.76797392,117340.0,117330.0,0.00048627]
[1753910061611,5.90049878,117340.0,117330.0,0.04375627]
[1753910063015,5.90844029,117340.0,117330.0,0.04375627]
[1753910063355,5.92178082,117340.0,117330.0,0.04375627]
[1753910064378,5.91325865,117340.0,117330.0,0.04375627]
[1753910064916,5.94161641,117340.0,117330.0,0.00048627]
[1753910065066,5.90473641,117340.0,117330.0,0.00048627]
[1753910065263,5.90473641,117340.0,117330.0,0.04375627]
[1753910066457,0.90473641,117340.0,117330.0,0.04375627]
[1753910066669,5.90473641,117340.0,117330.0,0.04375627]
[1753910067690,5.92306915,117340.0,117330.0,0.04375627]
[1753910067896,5.94869515,117340.0,117330.0,0.04375627]
[1753910068718,5.94870382,117340.0,117330.0,0.04375627]
[1753910069761,6.04152382,117340.0,117330.0,0.00048627]
[1753910069966,6.06937113,117340.0,117330.0,0.00048627]
[1753910072396,5.51898234,117330.0,117320.0,0.01180627]
[1753910072617,5.96006477,117330.0,117320.0,0.01195203]
[1753910073104,5.98569377,117330.0,117320.0,0.01195203]
[1753910073304,0.98569377,117330.0,117320.0,0.00014576]
[1753910073554,5.98569377,117330.0,117320.0,0.00014576]
[1753910074705,5.98569377,117330.0,117320.0,0.00114576]
[1753910075311,0.98569377,117330.0,117320.0,0.00114576]
[1753910075522,5.98569377,117330.0,117320.0,0.00114576]
[1753910075734,6.03999377,117330.0,117320.0,0.00114576]
[1753910076178,5.98569377,117330.0,117320.0,0.00114576]
[1753910076327,0.98569377,117330.0,117320.0,0.00114576]
[1753910076532,5.98569377,117330.0,117320.0,0.00114576]
[1753910078600,5.98569377,117330.0,117320.0,0.04246576]
[1753910079642,5.98569377,117330.0,117320.0,0.00114576]
[1753910079865,5.37409345,117320.0,117310.0,0.06887576]
[1753910080071,5.76926586,117320.0,117310.0,0.07098446]
[1753910080474,5.75221884,117320.0,117310.0,0.07098446]
[1753910080687,5.76926579,117320.0,117310.0,0.07098446]
[1753910080889,5.76074224,117320.0,117310.0,0.07098446]
[1753910081097,5.76074224,117320.0,117310.0,0.07398446]
[1753910082167,5.76926586,117320.0,117310.0,0.07398446]
[1753910082377,5.76074224,117320.0,117310.0,0.07398446]
[1753910082800,5.77408531,117320.0,117310.0,0.07398446]
[1753910083009,5.77412413,117320.0,117310.0,0.07398446]
[1753910083537,5.80875324,117320.0,117310.0,0.07398446]
[1753910083853,5.8258004,117320.0,117310.0,0.07398446]
[1753910084063,5.82580033,117320.0,117310.0,0.07398446]
[1753910084275,5.81727671,117320.0,117310.0,0.07398446]
[1753910084501,5.82580026,117320.0,117310.0,0.07398446]
[1753910084710,5.81727671,117320.0,117310.0,0.07398446]
[1753910085524,5.81727686,117320.0,117310.0,0.07398446]
[1753910085756,5.80875324,117320.0,117310.0,0.07097446]
[1753910086545,5.81727679,117320.0,117310.0,0.07097446]
[1753910086764,5.80875324,117320.0,117310.0,0.07097446]
[1753910087172,5.81727679,117320.0,117310.0,0.07097446]
[1753910087492,5.80875324,117320.0,117310.0,0.07097446]
[1753910088295,5.81727671,117320.0,117310.0,0.07097446]
[1753910088517,5.89891687,117320.0,117310.0,0.0030487]
[1753910088848,5.8989168,117320.0,117310.0,0.0030487]
[1753910089085,5.89039318,117320.0,117310.0,0.0030487]
[1753910089252,5.89891687,117320.0,117310.0,0.0010487]
[1753910089470,5.8989168,117320.0,117310.0,0.0010487]
[1753910089701,5.86419318,117320.0,117310.0,0.0010487]
[1753910089903,5.8727168,117320.0,117310.0,0.0010487]
[1753910090403,5.8727168,117320.0,117310.0,4.87e-05]
[1753910090637,5.8737168,117320.0,117310.0,4.87e-05]
[1753910090861,5.87371673,117320.0,117310.0,4.87e-05]
[1753910091086,5.87371717,117320.0,117310.0,4.87e-05]
[1753910091522,5.86519355,117320.0,117310.0,4.87e-05]
[1753910091730,5.85667,117320.0,117310.0,4.87e-05]
[1753910091932,5.85667,117320.0,117310.0,0.0691687]
[1753910092268,5.84814653,117320.0,117310.0,0.0691687]
[1753910092491,5.80538653,117320.0,117310.0,0.0712287]
[1753910093996,5.81391015,117320.0,117310.0,0.0712287]
[1753910094655,5.80538653,117320.0,117310.0,0.0712287]
[1753910094931,5.81391015,117320.0,117310.0,0.0712287]
[1753910095669,0.81391015,117320.0,117310.0,0.0712287]
[1753910095895,5.81391015,117320.0,117310.0,0.0712287]
[1753910096245,5.8139164,117320.0,117310.0,0.0712287]
[1753910096359,5.72091557,117320.0,117310.0,0.0712287]
[1753910096801,0.72091557,117320.0,117310.0,0.0712287]
[1753910096969,5.72091557,117320.0,117310.0,0.0712287]
[1753910097175,5.71292245,117320.0,117310.0,0.0712287]
[1753910097379,5.72091689,117320.0,117310.0,0.0712287]
[1753910097734,5.71776689,117320.0,117310.0,0.0712287]
[1753910098333,5.80224419,117320.0,117310.0,0.0712287]
[1753910098786,5.80224383,117320.0,117310.0,0.0712287]
[1753910098936,5.80224369,117320.0,117310.0,0.0712287]
[1753910099141,5.71776639,117320.0,117310.0,0.0712287]
[1753910099931,0.71776639,117320.0,117310.0,0.0712287]
[1753910100135,0.46662153,117320.0,117310.0,0.1008587]
[1753910100428,0.11327846,117320.0,117310.0,0.57620574]
[1753910100937,0.10528402,117320.0,117310.0,0.47470184]
[1753910101445,0.10428402,117320.0,117310.0,0.47470184]
[1753910101650,0.10328402,117320.0,117310.0,0.78039898]
[1753910101831,0.10328402,117320.0,117310.0,0.86487628]
[1753910102287,0.06865491,117320.0,117310.0,0.86487628]
[1753910102701,0.06865491,117320.0,117310.0,0.55917914]
[1753910102924,0.06865491,117320.0,117310.0,0.66199275]
[1753910103122,0.06865491,117320.0,117310.0,0.66299275]
[1753910103947,0.06865491,117320.0,117310.0,0.187336]
[1753910104161,0.06865491,117320.0,117310.0,0.59484675]
[1753910104567,0.06865491,117320.0,117310.0,0.59384675]
[1753910104776,0.06865491,117320.0,117310.0,0.59684675]
[1753910105268,0.09774218,117320.0,117310.0,0.59684675]
[1753910105724,0.09774218,117320.0,117310.0,0.2341387]
[1753910107452,0.09774218,117320.0,117310.0,0.1048587]
[1753910108729,0.09774218,117320.0,117310.0,0.1038587]
[1753910109130,0.09774218,117320.0,117310.0,0.1058587]
[1753910118570,0.09978218,117320.0,117310.0,0.1029287]
[1753910118771,0.14573218,117320.0,117310.0,0.1029287]
[1753910119174,0.09978218,117320.0,117310.0,0.1029287]
[1753910119346,0.09978218,117320.0,117310.0,0.1058587]
[1753910121994,0.09978218,117320.0,117310.0,0.1029287]
[1753910123765,0.09978218,117320.0,117310.0,0.0762287]
[1753910125749,0.14308766,117340.0,117310.0,0.0762287]
[1753910125948,5.0,117330.0,117310.0,0.0794387]
[1753910126160,5.0,117330.0,117310.0,0.1057387]
[1753910126398,5.0,117330.0,117320.0,0.04327]
[1753910126517,0.00215,117330.0,117320.0,0.04327]
[1753910126728,0.03232374,117330.0,117320.0,0.04327]
[1753910126929,0.00215,117330.0,117320.0,0.04327]
[1753910127141,0.50215,117330.0,117320.0,0.04327]
[1753910127721,0.50215,117330.0,117320.0,0.04648]
[1753910127926,0.00215,117330.0,117320.0,0.04748]
[1753910128772,0.00215,117330.0,117320.0,0.07398]
[1753910128991,0.00215,117330.0,117320.0,0.07498]
[1753910130233,0.00215,117330.0,117320.0,0.07698]
[1753910131235,0.03111596,117330.0,117320.0,0.07698]
[1753910134128,0.03111596,117330.0,117320.0,0.05048]
[1753910134549,0.05831596,117330.0,117320.0,0.04848]
[1753910134771,0.03111596,117330.0,117320.0,0.04848]
[1753910135084,0.05831596,117330.0,117320.0,0.04848]
[1753910135699,0.03111596,117330.0,117320.0,0.04848]
[1753910137964,0.14399326,117330.0,117320.0,0.002]
[1753910138166,0.19189326,117330.0,117320.0,0.002]
[1753910138692,0.17655376,117330.0,117320.0,0.002]
[1753910139053,0.15251557,117330.0,117320.0,0.04527]
[1753910140276,0.16103803,117330.0,117320.0,0.04527]
[1753910140885,0.15251557,117330.0,117320.0,0.04527]
[1753910141302,0.14399326,117330.0,117320.0,0.04527]
[1753910142199,0.15251564,117330.0,117320.0,0.04527]
[1753910143209,5.14399326,117330.0,117320.0,0.04527]
[1753910144996,5.15251564,117330.0,117320.0,0.04527]
[1753910145202,5.14399326,117330.0,117320.0,0.04527]
[1753910145612,5.11559326,117330.0,117320.0,0.04848]
[1753910145836,5.11559326,117330.0,117320.0,0.05048]
[1753910146049,0.15824596,117330.0,117320.0,0.10428]
[1753910146289,0.02896596,117330.0,117320.0,0.10428]
[1753910146522,0.02896596,117330.0,117320.0,0.07778]
[1753910146734,5.0,117330.0,117320.0,0.07778]
[1753910148152,0.53578631,117340.0,117320.0,0.07778]
[1753910148349,0.61973453,117340.0,117320.0,0.03451]
[1753910148580,5.0,117330.0,117320.0,0.03451]
[1753910148981,5.0,117330.0,117320.0,0.03351]
[1753910149607,5.0,117330.0,117320.0,0.07678]
[1753910151675,5.0,117330.0,117320.0,0.07778]
[1753910153103,5.02514244,117330.0,117320.0,0.07778]
[1753910153315,0.02514244,117330.0,117320.0,0.07778]
[1753910153525,0.02514244,117330.0,117320.0,0.10488]
[1753910153716,5.0,117330.0,117320.0,0.10608]
[1753910154275,0.43781842,117340.0,117330.0,0.0556]
[1753910154474,0.4244773,117340.0,117330.0,0.10408]
[1753910157316,0.61014225,117340.0,117330.0,0.10408]
[1753910158140,0.12928,117350.0,117330.0,0.10408]
[1753910158346,4.900744,117340.0,117330.0,0.0576]
[1753910158972,4.900744,117340.0,117330.0,0.10349]
[1753910161642,0.02490493,117340.0,117330.0,0.10349]
[1753910161810,0.52490493,117340.0,117330.0,0.10349]
[1753910162007,5.400744,117340.0,117330.0,0.10349]
[1753910162177,4.900744,117340.0,117330.0,0.10349]
[1753910164087,4.900744,117340.0,117330.0,0.10509]
[1753910164290,0.46928,117350.0,117340.0,0.0262]
[1753910164543,0.4792514,117350.0,117340.0,0.07209]
[1753910164751,0.52539906,117350.0,117330.0,0.10079]
[1753910165039,0.55419906,117350.0,117330.0,0.10079]
[1753910165651,0.55619906,117350.0,117330.0,0.10079]
[1753910165855,0.55519906,117350.0,117330.0,0.10079]
[1753910166055,0.55419906,117350.0,117330.0,0.10079]
[1753910166261,0.55519906,117350.0,117330.0,0.10079]
[1753910166666,0.55619906,117350.0,117330.0,0.10079]
[1753910172025,0.54820766,117350.0,117330.0,0.10079]
[1753910174244,0.88909766,117350.0,117330.0,0.10079]
[1753910184427,4.900744,117340.0,117320.0,0.13222]
[1753910184659,0.36341,117340.0,117320.0,0.20123]
[1753910184905,0.36341,117340.0,117320.0,0.10049]
[1753910185110,0.39151,117340.0,117320.0,0.10049]
[1753910185322,0.36899,117340.0,117320.0,0.10049]
[1753910185774,0.36899,117340.0,117330.0,0.04047]
[1753910185980,0.37097,117340.0,117330.0,0.04047]
[1753910186430,0.34287,117340.0,117330.0,0.04047]
[1753910187967,4.900744,117330.0,117310.0,0.1867287]
[1753910188180,4.902704,117320.0,117310.0,0.0700587]
[1753910188407,0.50196,117320.0,117310.0,0.0700587]
[1753910188618,0.50196,117320.0,117310.0,0.0721787]
[1753910189084,0.5,117320.0,117310.0,0.1000787]
[1753910189331,4.900744,117320.0,117310.0,0.1010787]
[1753910189767,4.900744,117320.0,117310.0,0.1000787]
[1753910189975,4.900744,117320.0,117310.0,0.1030787]
[1753910190185,4.900744,117320.0,117310.0,0.1050787]
[1753910194660,0.08808865,117320.0,117310.0,0.0050487]
[1753910194865,0.38159644,117320.0,117310.0,0.0050487]
[1753910195092,0.39011984,117320.0,117310.0,0.0050487]
[1753910195263,5.79796739,117320.0,117310.0,0.0050487]
[1753910195480,5.83289108,117320.0,117310.0,0.0050487]
[1753910195721,5.99484188,117320.0,117310.0,0.0050487]
[1753910195925,6.07931918,117320.0,117310.0,0.0050487]
[1753910196122,6.07931918,117320.0,117310.0,0.0030487]
[1753910196331,6.08031918,117320.0,117310.0,4.87e-05]
[1753910196529,6.17559706,117320.0,117310.0,4.87e-05]
[1753910196736,6.17438175,117320.0,117310.0,4.87e-05]
[1753910197139,6.18772519,117320.0,117310.0,4.87e-05]
[1753910197761,6.4155725,117320.0,117310.0,4.87e-05]
[1753910198711,6.44056514,117320.0,117310.0,4.87e-05]
[1753910201082,6.4272217,117320.0,117310.0,4.87e-05]
[1753910202673,0.52557674,117290.0,117280.0,0.0294587]
[1753910202791,0.15681667,117290.0,117280.0,0.03172481]
[1753910202990,0.03102816,117290.0,117280.0,0.03172481]
[1753910203197,0.03955389,117290.0,117280.0,0.03172481]
[1753910203841,0.01397722,117290.0,117280.0,0.03472481]
[1753910204273,0.50196,117290.0,117280.0,0.03472481]
[1753910204662,0.50196,117290.0,117280.0,0.03486481]
[1753910204889,0.50196,117290.0,117280.0,0.03786481]
[1753910205536,0.50196,117290.0,117280.0,0.03486481]
[1753910205783,5.400744,117290.0,117280.0,0.09136481]
[1753910206052,4.900744,117290.0,117280.0,0.09136481]
[1753910206259,4.900744,117290.0,117280.0,0.09336481]
[1753910207330,5.1145013,117290.0,117280.0,0.09336481]
[1753910207532,0.2137573,117290.0,117280.0,0.09336481]
[1753910207753,0.62928,117290.0,117280.0,0.09336481]
[1753910210099,0.62928,117290.0,117280.0,0.06676481]
[1753910210626,0.62928,117290.0,117280.0,0.03886481]
[1753910210872,0.63124,117290.0,117280.0,0.03886481]
[1753910212781,0.62928,117290.0,117280.0,0.09356481]
[1753910216103,0.365635,117300.0,117290.0,0.0547]
[1753910216315,0.496915,117300.0,117290.0,0.04014]
[1753910216510,0.496915,117300.0,117290.0,0.04211]
[1753910216716,0.51454464,117300.0,117280.0,0.10212611]
[1753910216924,4.900744,117290.0,117280.0,0.07008611]
[1753910217125,0.0864773,117290.0,117280.0,0.07008611]
[1753910217334,0.0864773,117290.0,117280.0,0.04228611]
[1753910217746,0.0864773,117290.0,117280.0,0.04028611]
[1753910218771,0.0864773,117290.0,117280.0,0.04225611]
[1753910219813,0.0864773,117290.0,117280.0,0.04625611]
[1753910220731,0.002,117290.0,117280.0,0.04947611]
[1753910220962,0.494914,117300.0,117280.0,0.10597611]
[1753910221159,0.5793913,117300.0,117280.0,0.06261611]
[1753910221373,0.5793913,117300.0,117290.0,0.04014]
[1753910221573,0.5813913,117300.0,117290.0,0.04014]
[1753910221778,0.65203401,117300.0,117290.0,0.04014]
[1753910222643,0.5813913,117300.0,117290.0,0.04014]
[1753910222846,0.12928,117300.0,117290.0,0.10123]
[1753910223054,0.494913,117310.0,117290.0,0.04533]
[1753910223289,0.494913,117310.0,117300.0,0.05912]
[1753910223499,0.46928,117310.0,117300.0,0.10123]
[1753910223718,0.46936,117310.0,117300.0,0.10123]
[1753910224552,0.47036,117310.0,117300.0,0.10123]
[1753910225172,0.5548373,117310.0,117300.0,0.10123]
[1753910226659,0.47036,117310.0,117300.0,0.10123]
[1753910227003,0.47048,117310.0,117300.0,0.04014]
[1753910227653,0.47363,117310.0,117300.0,0.04014]
[1753910230725,0.47359,117310.0,117300.0,0.04014]
[1753910233741,0.49063774,117310.0,117300.0,0.04014]
[1753910234023,5.4588113,117310.0,117300.0,0.04014]
[1753910234340,5.47585904,117310.0,117300.0,0.04014]
[1753910234524,5.53371904,117310.0,117290.0,0.09474]
[1753910234737,0.00852449,117300.0,117290.0,0.04014]
[1753910234935,0.00518,117300.0,117290.0,0.04014]
[1753910235340,0.0222292,117300.0,117290.0,0.04014]
[1753910235514,5.400744,117290.0,117280.0,0.04028611]
[1753910235718,0.13132,117290.0,117280.0,0.04028611]
[1753910236136,0.13132,117290.0,117280.0,0.04225611]
[1753910237449,0.13132,117290.0,117280.0,0.04425611]
[1753910237661,0.002,117290.0,117280.0,0.04425611]
[1753910238988,0.002,117290.0,117280.0,0.04947611]
[1753910248160,0.01052536,117290.0,117280.0,0.04947611]
[1753910248364,0.05343668,117290.0,117280.0,0.04947611]
[1753910248594,0.0619619,117290.0,117280.0,0.04947611]
[1753910248947,0.05343668,117290.0,117280.0,0.04947611]
[1753910254557,0.002,117290.0,117280.0,0.04947611]
[1753910254763,0.12928,117300.0,117280.0,0.10317611]
[1753910254940,0.69423543,117310.0,117300.0,0.0537]
[1753910255141,0.68089,117310.0,117300.0,0.10075]
[1753910255542,0.68089,117310.0,117300.0,0.04705]
[1753910256336,0.68303,117310.0,117300.0,0.04184]
[1753910256536,0.70903,117310.0,117300.0,0.04184]
[1753910258039,0.68403,117310.0,117300.0,0.04184]
[1753910260452,0.68403,117310.0,117300.0,0.04395]
[1753910267403,0.44370764,117310.0,117300.0,0.04395]
[1753910272121,0.44370764,117310.0,117300.0,0.04184]
[1753910272342,4.900744,117300.0,117290.0,0.04494]
[1753910272550,4.900744,117300.0,117290.0,0.09795]
[1753910273831,4.900744,117300.0,117290.0,0.09895]
[1753910274240,4.900744,117300.0,117290.0,0.09995]
[1753910278513,0.12928,117300.0,117290.0,0.09995]
[1753910280553,4.900744,117300.0,117290.0,0.09995]
[1753910281203,0.10056764,117310.0,117300.0,0.0503]
[1753910281415,0.60056764,117310.0,117300.0,0.0524]
[1753910281625,0.10056764,117310.0,117300.0,0.22443]
[1753910282837,0.10156764,117310.0,117300.0,0.22443]
[1753910294712,0.10359764,117310.0,117300.0,0.19993]
[1753910294931,0.10359764,117310.0,117300.0,0.17111]
[1753910297614,0.10359764,117310.0,117300.0,0.17413]
[1753910312224,0.10359764,117310.0,117300.0,0.04485]
[1753910312638,0.18264764,117310.0,117300.0,0.12924]
[1753910312845,0.65352764,117310.0,117300.0,0.12924]
[1753910313050,0.65352764,117310.0,117300.0,0.17163]
[1753910313672,0.10359764,117310.0,117300.0,0.17163]
[1753910313879,0.60359764,117310.0,117300.0,0.17361]
[1753910314121,0.60359764,117310.0,117300.0,0.17655]
[1753910316668,0.10359764,117310.0,117300.0,0.17655]
[1753910320180,0.10156764,117310.0,117300.0,0.17655]
[1753910321306,0.10156764,117310.0,117300.0,0.22605]
[1753910322733,0.10056764,117310.0,117300.0,0.22605]
[1753910323008,0.10056764,117310.0,117300.0,0.22705]
[1753910323196,0.10056764,117310.0,117300.0,0.22805]
[1753910327296,0.10056764,117310.0,117300.0,0.17855]
[1753910330497,0.10056764,117310.0,117300.0,0.22745]
[1753910331602,0.35016951,117330.0,117300.0,0.22745]
[1753910331822,0.43464681,117330.0,117300.0,0.22745]
[1753910332064,0.43464681,117330.0,117310.0,0.04533]
[1753910332283,0.00196,117320.0,117310.0,0.04731]
[1753910333167,0.0511,117330.0,117310.0,0.04731]
[1753910333410,0.001,117330.0,117310.0,0.09157]
[1753910333629,5.400744,117330.0,117310.0,0.09157]
[1753910333822,4.900744,117330.0,117320.0,0.04139]
[1753910334037,0.00196,117330.0,117320.0,0.04139]
[1753910334352,0.00296,117330.0,117320.0,0.04139]
[1753910335465,0.00296,117330.0,117320.0,0.04337]
[1753910335680,0.00196,117330.0,117320.0,0.04337]
[1753910336154,0.42145,117340.0,117320.0,0.04337]
[1753910336155,0.3892,117340.0,117320.0,0.04337]
[1753910336373,0.41435766,117350.0,117330.0,0.15625]
[1753910336624,0.4244415,117350.0,117340.0,0.00204]
[1753910336839,0.39928384,117350.0,117340.0,0.0421]
[1753910337052,0.3913,117350.0,117340.0,0.04006]
[1753910337768,0.3923,117350.0,117340.0,0.04006]
[1753910338962,0.5041,117350.0,117340.0,0.0421]
[1753910339182,0.5041,117350.0,117340.0,0.04531]
[1753910339399,0.5031,117350.0,117340.0,0.04531]
[1753910339616,0.53194725,117350.0,117340.0,0.04531]
[1753910339834,0.03094725,117350.0,117340.0,0.04531]
[1753910340048,0.03194725,117350.0,117340.0,0.04531]
[1753910340519,0.55544725,117350.0,117340.0,0.04006]
[1753910340746,0.08131725,117350.0,117340.0,0.04006]
[1753910340960,0.11155725,117350.0,117330.0,0.04327]
[1753910342739,0.08805725,117350.0,117330.0,0.04006]
[1753910342954,0.11005731,117340.0,117320.0,0.16934]
[1753910343174,0.0021,117330.0,117320.0,0.0421]
[1753910343390,0.0021,117330.0,117320.0,0.17134]
[1753910344107,0.0021,117330.0,117320.0,0.17455]
[1753910344539,0.0021,117330.0,117320.0,0.17655]
[1753910345400,0.0021,117330.0,117320.0,0.17755]
[1753910345822,0.0021,117330.0,117320.0,0.17655]
[1753910346233,0.0021,117330.0,117320.0,0.04931]
[1753910346445,0.0021,117330.0,117320.0,0.17534]
[1753910348403,0.0021,117330.0,117320.0,0.17855]
[1753910349549,0.05197,117340.0,117320.0,0.17855]
[1753910349778,0.05197,117340.0,117320.0,0.13849]
[1753910349990,0.0489,117340.0,117330.0,0.04006]
[1753910350206,0.051,117340.0,117330.0,0.0421]
[1753910351398,0.0256,117340.0,117330.0,0.0421]
[1753910352667,0.0256,117340.0,117330.0,0.0431]
[1753910353552,0.0256,117340.0,117330.0,0.04631]
[1753910354862,0.0256,117340.0,117330.0,0.04731]
[1753910356011,0.0506,117340.0,117330.0,0.0441]
[1753910357856,0.46666533,117350.0,117330.0,0.09341]
[1753910358086,4.900744,117340.0,117330.0,0.05014]
[1753910358793,4.900744,117340.0,117330.0,0.09241]
[1753910359969,4.900744,117340.0,117330.0,0.09341]
[1753910360602,0.36884725,117350.0,117330.0,0.09341]
[1753910360896,0.36884725,117350.0,117340.0,0.04327]
[1753910361099,0.36884725,117350.0,117340.0,0.04531]
[1753910361307,0.37094725,117350.0,117340.0,0.04531]
[1753910363042,0.02884725,117350.0,117340.0,0.04531]
[1753910363488,4.900744,117350.0,117340.0,0.04531]
[1753910365410,4.900744,117350.0,117340.0,0.09211]
[1753910365616,0.4692,117360.0,117340.0,0.09211]
[1753910365828,0.02991993,117350.0,117340.0,0.05205]
[1753910366043,0.4696866,117360.0,117350.0,0.03952]
[1753910366266,0.35046004,117360.0,117350.0,0.04162]
[1753910366403,0.37919872,117360.0,117350.0,0.04162]
[1753910366873,0.38019872,117360.0,117350.0,0.04459]
[1753910368290,0.38119872,117360.0,117350.0,0.04459]
[1753910368500,0.03921872,117360.0,117350.0,0.05635038]
[1753910368704,0.03821684,117360.0,117350.0,0.09269]
[1753910368919,0.03921684,117360.0,117350.0,0.06789]
[1753910371508,0.03921684,117360.0,117350.0,0.04459]
[1753910372158,0.03921684,117360.0,117350.0,0.09269]
[1753910376092,0.03921684,117360.0,117350.0,0.04459]
[1753910376514,0.04119684,117360.0,117350.0,0.04459]
[1753910379098,0.03320528,117360.0,117350.0,0.04459]
[1753910382416,0.03320528,117360.0,117350.0,0.06829]
[1753910382617,0.03122528,117360.0,117350.0,0.06829]
[1753910383063,0.03022528,117360.0,117350.0,0.06829]
[1753910383276,0.02922528,117360.0,117350.0,0.06829]
[1753910383947,0.02922528,117360.0,117350.0,0.09179]
[1753910385059,0.02922528,117360.0,117350.0,0.09392037]
[1753910386238,0.02922528,117360.0,117350.0,0.09592037]
[1753910394123,0.02922528,117360.0,117350.0,0.09379]
[1753910394736,0.02922528,117360.0,117350.0,0.22295]
[1753910400666,0.02922528,117360.0,117350.0,0.17575]
[1753910401636,0.03133528,117360.0,117350.0,0.04659]
[1753910401847,0.03133528,117360.0,117350.0,0.17278]
[1753910403111,0.03133528,117360.0,117350.0,0.17602]
[1753910411885,0.03133528,117360.0,117350.0,0.04686]
[1753910412094,0.07853528,117360.0,117350.0,0.17068]
[1753910412317,0.10907528,117360.0,117350.0,0.13116]
[1753910412516,0.60907528,117360.0,117350.0,0.13116]
[1753910412941,0.60907528,117360.0,117350.0,0.13103106]
[1753910413390,0.58173528,117360.0,117350.0,0.13103106]
[1753910414010,0.08173528,117360.0,117350.0,0.16924106]
[1753910417593,0.07853528,117360.0,117350.0,0.16924106]
[1753910420949,0.07853528,117360.0,117350.0,0.17139106]
[1753910423082,0.07853528,117360.0,117350.0,0.17463106]
[1753910423524,0.05543528,117360.0,117350.0,0.17463106]
[1753910423752,0.02922528,117360.0,117350.0,0.17463106]
[1753910424442,0.02922528,117360.0,117350.0,0.21943106]
[1753910426995,0.02922528,117360.0,117350.0,0.30390836]
[1753910440707,4.900744,117390.0,117350.0,0.25910836]
[1753910441078,0.00813886,117390.0,117360.0,0.0852]
[1753910441289,0.00813886,117390.0,117370.0,0.12916]
[1753910441526,0.00214,117380.0,117370.0,0.16568]
[1753910441958,0.02774143,117380.0,117370.0,0.16568]
[1753910442160,0.00214,117380.0,117370.0,0.16568]
[1753910442771,0.00314,117380.0,117370.0,0.16568]
[1753910442988,0.00414,117380.0,117370.0,0.16568]
[1753910445131,0.02945341,117380.0,117370.0,0.16568]
[1753910446013,0.05225341,117380.0,117370.0,0.16568]
[1753910446863,0.02945341,117380.0,117370.0,0.16568]
[1753910447747,0.02945341,117380.0,117370.0,0.16876]
[1753910448420,0.02945341,117380.0,117370.0,0.17079]
[1753910450822,0.02731341,117380.0,117370.0,0.21599]
[1753910451714,0.02631341,117380.0,117370.0,0.21599]
[1753910451936,0.02531341,117380.0,117370.0,0.21599]
[1753910452152,0.00014593,117390.0,117370.0,0.21999]
[1753910452597,0.50270537,117400.0,117380.0,0.0837]
[1753910452814,0.55539093,117400.0,117390.0,0.12916]
[1753910453027,0.50468537,117400.0,117390.0,0.16568]